bitfinex-derivatives/quotes_BTCF0:USTF0_20251120
["timestamp","ask_amount","ask_price","bid_price","bid_amount"]
[1763663907364,0.04118631,86831.0,86830.0,0.19081]
[1763663907555,0.04118631,86831.0,86830.0,0.19300803]
[1763663907753,0.04118631,86832.0,86831.0,0.2023393]
[1763663907955,0.04118631,86835.0,86834.0,0.2023389]
[1763663908155,0.0115314,86815.0,86814.0,0.17083]
[1763663908370,0.03735653,86815.0,86814.0,0.06507]
[1763663908557,0.03735653,86815.0,86814.0,0.06726803]
[1763663908763,0.07333934,86815.0,86814.0,0.06726803]
[1763663908963,0.03735653,86815.0,86814.0,0.06726803]
[1763663910264,0.0115332,86801.0,86800.0,0.28945]
[1763663910462,0.3723332,86801.0,86800.0,0.06726803]
[1763663910658,0.39815833,86801.0,86800.0,0.06726803]
[1763663910961,0.43937892,86801.0,86800.0,0.06726803]
[1763663911157,0.39815833,86801.0,86800.0,0.06726803]
[1763663911352,0.39815833,86801.0,86800.0,0.18337803]
[1763663911557,0.39815833,86801.0,86800.0,0.29164803]
[1763663911963,0.39815833,86801.0,86800.0,0.29264803]
[1763663912262,0.39815833,86801.0,86800.0,0.29045]
[1763663912468,0.39815833,86801.0,86800.0,0.06607]
[1763663912668,0.43937892,86801.0,86800.0,0.06607]
[1763663912964,0.38662513,86801.0,86786.0,0.3608]
[1763663913156,0.0115362,86779.0,86778.0,0.3608]
[1763663913354,0.05270171,86779.0,86778.0,0.00219803]
[1763663913559,0.03736133,86779.0,86778.0,0.00219803]
[1763663913769,0.02582513,86779.0,86778.0,0.22358803]
[1763663914066,0.3608,86807.0,86804.0,0.2329228]
[1763663914265,0.3608,86807.0,86806.0,0.1132]
[1763663914471,0.3608,86807.0,86806.0,0.11539803]
[1763663914768,0.09122359,86810.0,86809.0,0.22139]
[1763663914956,0.42254826,86814.0,86810.0,0.011532]
[1763663915161,0.3608,86814.0,86813.0,0.11539803]
[1763663915364,0.3608,86814.0,86813.0,0.22358803]
[1763663915557,0.0115312,86817.0,86815.0,0.1132]
[1763663916069,0.00017285,86818.0,86816.0,0.0115312]
[1763663916367,0.00017285,86818.0,86817.0,0.22358803]
[1763663916972,0.3608,86837.0,86835.0,0.1831]
[1763663916973,0.0115287,86836.0,86835.0,0.1831]
[1763663917159,0.3608,86837.0,86836.0,0.22139]
[1763663917361,0.3723283,86839.0,86838.0,0.1132]
[1763663917560,0.3723283,86839.0,86838.0,0.00219803]
[1763663918162,0.46519032,86839.0,86838.0,0.00219803]
[1763663918663,0.3723283,86839.0,86838.0,0.00219803]
[1763663918866,0.3608,86839.0,86838.0,0.22358803]
[1763663919365,0.3618,86839.0,86838.0,0.22358803]
[1763663919567,0.45622,86839.0,86838.0,0.22358803]
[1763663919965,0.45622,86839.0,86838.0,0.00219803]
[1763663920265,0.0115283,86838.0,86835.0,0.0699]
[1763663920464,0.0115283,86838.0,86836.0,0.00219803]
[1763663921059,0.45622,86839.0,86838.0,0.1132]
[1763663921269,0.45622,86839.0,86838.0,0.11539803]
[1763663921270,0.4677482,86839.0,86838.0,0.11539803]
[1763663921469,0.4677482,86839.0,86838.0,0.22358803]
[1763663921862,0.4667482,86839.0,86835.0,0.0699]
[1763663922272,0.0115292,86831.0,86830.0,0.00017274]
[1763663923174,0.07329617,86831.0,86830.0,0.00017274]
[1763663923378,0.0115292,86831.0,86830.0,0.00017274]
[1763663924676,0.0115292,86831.0,86830.0,4e-08]
[1763663925667,0.4115292,86831.0,86830.0,4e-08]
[1763663925867,0.0115332,86801.0,86800.0,0.29129]
[1763663926063,0.39788019,86801.0,86800.0,0.29348803]
[1763663926776,0.39788019,86801.0,86800.0,0.07209803]
[1763663927176,0.40949506,86801.0,86800.0,0.29348803]
[1763663927577,0.38634699,86801.0,86800.0,0.29348803]
[1763663927771,0.03722118,86801.0,86800.0,0.07209803]
[1763663928771,0.03722118,86801.0,86800.0,0.0709]
[1763663929266,0.03722118,86801.0,86800.0,0.0699]
[1763663929582,0.03722118,86801.0,86800.0,0.07409803]
[1763663929778,0.03722118,86801.0,86800.0,0.29548803]
[1763663929979,0.03722118,86801.0,86800.0,0.29448803]
[1763663930179,0.03722118,86801.0,86800.0,0.29548803]
[1763663930869,0.02554699,86801.0,86800.0,0.29548803]
[1763663931070,0.00017274,86809.0,86808.0,0.2329223]
[1763663931377,0.02571895,86809.0,86808.0,0.00219803]
[1763663931576,0.02571895,86809.0,86808.0,0.22358803]
[1763663931877,0.02571895,86809.0,86808.0,0.00219803]
[1763663932081,0.0115323,86808.0,86800.0,0.0709]
[1763663932269,0.0115331,86802.0,86801.0,0.22358803]
[1763663932475,0.03707931,86802.0,86801.0,0.22358803]
[1763663932674,0.03707931,86802.0,86801.0,0.11539803]
[1763663932876,0.03707931,86802.0,86801.0,0.22358803]
[1763663933370,0.0115327,86806.0,86805.0,0.2329227]
[1763663933578,0.01170504,86809.0,86808.0,0.2329223]
[1763663933882,0.01170494,86809.0,86808.0,0.23512033]
[1763663934385,0.00017274,86809.0,86808.0,0.23512033]
[1763663934682,0.00017274,86809.0,86808.0,0.59592033]
[1763663934880,2.74e-06,86809.0,86808.0,0.59592033]
[1763663935081,0.09106552,86820.0,86819.0,0.2329208]
[1763663935287,0.3723295,86829.0,86828.0,0.29129]
[1763663935583,0.38407039,86829.0,86828.0,0.30501763]
[1763663935779,0.37254089,86829.0,86828.0,0.29348803]
[1763663936182,0.01174089,86829.0,86828.0,0.29348803]
[1763663936379,0.0115295,86830.0,86828.0,0.29348803]
[1763663936574,0.3608,86836.0,86828.0,0.29348803]
[1763663936575,0.011529,86833.0,86829.0,0.22139]
[1763663936780,0.011529,86833.0,86832.0,0.22139]
[1763663936984,0.02324862,86833.0,86832.0,0.22358803]
[1763663937189,0.011529,86833.0,86832.0,0.22358803]
[1763663937382,0.011529,86833.0,86832.0,0.00219803]
[1763663937683,0.0115306,86821.0,86820.0,0.00017274]
[1763663937878,0.0115306,86821.0,86820.0,0.22376077]
[1763663938075,0.0115302,86824.0,86820.0,0.22376077]
[1763663938280,0.0115302,86824.0,86823.0,0.22139]
[1763663938482,0.0115302,86824.0,86823.0,0.22358803]
[1763663940476,0.00999999,86830.0,86823.0,0.22358803]
[1763663940477,0.02152939,86830.0,86829.0,0.22139]
[1763663940674,0.00017274,86837.0,86836.0,0.22139]
[1763663940875,0.00017274,86837.0,86836.0,0.58438803]
[1763663941079,0.0115295,86829.0,86828.0,0.1831]
[1763663941281,0.0115295,86829.0,86828.0,0.18529803]
[1763663941671,0.0115295,86829.0,86828.0,0.29348803]
[1763663941878,0.01170124,86837.0,86836.0,0.22139]
[1763663942072,0.01170124,86837.0,86836.0,0.22358803]
[1763663942381,0.00017274,86837.0,86836.0,0.22358803]
[1763663942682,0.00017274,86837.0,86836.0,0.11539803]
[1763663942885,0.0115295,86829.0,86828.0,0.18231]
[1763663943089,0.3723295,86829.0,86828.0,0.18231]
[1763663943974,0.2341506,86821.0,86820.0,0.00017274]
[1763663944182,0.0115332,86801.0,86800.0,0.18231]
[1763663944388,0.0115332,86801.0,86800.0,0.18450803]
[1763663944589,0.0115332,86801.0,86800.0,0.29444803]
[1763663944980,0.0115321,86810.0,86809.0,0.22235]
[1763663945180,0.0115321,86810.0,86809.0,0.22454803]
[1763663945492,0.05277411,86813.0,86812.0,0.22235]
[1763663945687,0.03674733,86813.0,86812.0,0.22454803]
[1763663946088,0.02521563,86813.0,86812.0,0.22454803]
[1763663946283,0.08708269,86815.0,86814.0,0.28863]
[1763663946585,0.06649522,86815.0,86814.0,0.29082803]
[1763663946990,0.02522055,86815.0,86814.0,0.29082803]
[1763663947186,0.13684055,86815.0,86814.0,0.22454803]
[1763663947391,0.13684055,86815.0,86814.0,0.11460803]
[1763663947785,0.06649904,86815.0,86814.0,0.29082803]
[1763663948685,0.02522055,86815.0,86814.0,0.29082803]
[1763663948899,0.13684055,86815.0,86814.0,0.22454803]
[1763663949093,0.02522055,86815.0,86814.0,0.29082803]
[1763663949387,0.11162,86815.0,86814.0,0.11460803]
[1763663949590,0.0115331,86802.0,86801.0,0.22252274]
[1763663949789,0.0115327,86805.0,86804.0,0.22235]
[1763663949984,0.0115327,86805.0,86804.0,0.22454803]
[1763663950186,0.03675416,86805.0,86804.0,0.22454803]
[1763663950394,0.07802747,86805.0,86804.0,0.22454803]
[1763663950798,0.30064747,86805.0,86804.0,0.00219803]
[1763663950995,0.25937416,86805.0,86804.0,0.00219803]
[1763663951192,0.2341531,86802.0,86801.0,0.00017274]
[1763663951393,0.25937456,86802.0,86801.0,0.00017274]
[1763663951600,0.0115352,86786.0,86785.0,0.47321]
[1763663951800,0.03675666,86786.0,86785.0,0.47540803]
[1763663951992,0.03675666,86786.0,86785.0,0.11460803]
[1763663952295,0.02522146,86786.0,86785.0,0.22454803]
[1763663952689,1.46e-06,86786.0,86785.0,0.22454803]
[1763663952892,0.00017284,86794.0,86793.0,0.2338843]
[1763663953200,0.04126098,86806.0,86805.0,0.22235]
[1763663953400,0.04126098,86806.0,86805.0,0.23608073]
[1763663953698,0.09259433,86822.0,86809.0,0.22235]
[1763663953699,0.04126098,86810.0,86809.0,0.22235]
[1763663953998,0.0115308,86819.0,86818.0,0.22235]
[1763663954293,0.0115302,86825.0,86822.0,0.1214704]
[1763663954498,0.0115302,86825.0,86814.0,0.06628]
[1763663954499,0.0115302,86825.0,86824.0,0.22235]
[1763663954700,0.0115302,86825.0,86824.0,0.22454803]
[1763663955099,0.65684168,86825.0,86824.0,0.00219803]
[1763663955298,0.0115314,86815.0,86814.0,0.28863]
[1763663955500,0.2341514,86815.0,86814.0,0.00219803]
[1763663956496,0.22262,86815.0,86814.0,0.00219803]
[1763663956697,0.06183181,86822.0,86821.0,0.22235]
[1763663956891,0.3608,86824.0,86823.0,0.22235]
[1763663957086,0.3608,86824.0,86823.0,0.22454803]
[1763663957295,0.01170274,86827.0,86826.0,0.22235]
[1763663957296,0.00017284,86827.0,86826.0,0.22235]
[1763663957490,0.00017284,86827.0,86826.0,0.22454803]
[1763663959097,0.06183181,86836.0,86835.0,0.2338787]
[1763663959301,1.81e-06,86845.0,86844.0,0.22235]
[1763663959500,0.0115273,86846.0,86844.0,0.23607553]
[1763663959694,0.3723269,86849.0,86848.0,0.22235]
[1763663959996,0.60667384,86849.0,86848.0,0.00219803]
[1763663960199,0.2341479,86841.0,86840.0,0.00017274]
[1763663960395,0.2341479,86841.0,86840.0,0.00237077]
[1763663960595,0.0115273,86846.0,86845.0,0.22235]
[1763663960795,0.0115273,86846.0,86845.0,0.22454803]
[1763663960997,0.37252694,86849.0,86848.0,0.22235]
[1763663961194,0.37252694,86849.0,86848.0,0.22454803]
[1763663961394,0.01172694,86849.0,86848.0,0.22454803]
[1763663961699,0.3608,86850.0,86849.0,0.22235]
[1763663961901,0.00017274,86857.0,86852.0,0.22235]
[1763663962096,0.00017274,86857.0,86856.0,0.29082803]
[1763663962996,0.00017274,86857.0,86856.0,0.22454803]
[1763663963506,0.22279274,86857.0,86856.0,0.00219803]
[1763663963735,0.22379274,86857.0,86856.0,0.00219803]
[1763663963980,0.077516,86856.0,86840.0,0.00017274]
[1763663964140,0.3608,86849.0,86843.0,0.00219803]
[1763663964301,0.0115275,86844.0,86843.0,0.22454803]
[1763663964691,0.372327,86849.0,86844.0,0.0115275]
[1763663964892,0.01269864,86857.0,86849.0,0.22235]
[1763663965098,0.0115262,86855.0,86854.0,0.11241]
[1763663965411,0.22262,86855.0,86854.0,0.00219803]
[1763663965598,0.11162,86855.0,86854.0,0.22454803]
[1763663966102,0.0115279,86841.0,86840.0,0.11258274]
[1763663966402,0.2341479,86841.0,86840.0,0.00237077]
[1763663966801,0.2341479,86841.0,86840.0,0.00017274]
[1763663968506,0.3608,86843.0,86822.0,0.11241]
[1763663968507,0.00999999,86830.0,86822.0,0.11241]
[1763663968816,0.372329,86833.0,86832.0,0.22235]
[1763663969103,0.372329,86833.0,86817.0,0.3608]
[1763663969104,0.1231501,86825.0,86824.0,0.11241]
[1763663969306,0.5949501,86825.0,86824.0,0.00219803]
[1763663969708,0.11162,86817.0,86816.0,0.00017274]
[1763663969908,0.11162,86817.0,86816.0,0.11478077]
[1763663970205,0.0115311,86818.0,86817.0,0.21708]
[1763663970408,0.0115311,86818.0,86817.0,0.23080913]
[1763663970603,0.2477811,86818.0,86817.0,0.00219803]
[1763663970908,0.247781,86818.0,86817.0,0.00219803]
[1763663971111,0.247781,86818.0,86817.0,0.11140803]
[1763663971513,0.608581,86818.0,86817.0,0.00219803]
[1763663971712,0.608581,86818.0,86817.0,0.00319803]
[1763663971901,0.608581,86818.0,86817.0,0.001]
[1763663972103,0.23625,86800.0,86792.0,0.3608]
[1763663972411,0.0115359,86782.0,86781.0,0.22866]
[1763663972615,0.0115359,86782.0,86781.0,0.23085803]
[1763663972815,0.2458659,86782.0,86781.0,0.00219803]
[1763663973010,0.25778955,86782.0,86781.0,0.00219803]
[1763663973203,0.25778955,86782.0,86772.0,0.11417]
[1763663973204,0.011537,86773.0,86772.0,0.11417]
[1763663973404,0.245867,86773.0,86772.0,0.00219803]
[1763663973611,0.245868,86765.0,86747.0,0.3608]
[1763663973918,0.3608,86765.0,86759.0,0.11417]
[1763663974118,0.23433,86761.0,86760.0,0.00219803]
[1763663974415,0.3608,86765.0,86760.0,0.01373673]
[1763663974610,0.3598,86765.0,86760.0,0.00219803]
[1763663974810,0.3598,86765.0,86761.0,0.0115386]
[1763663975009,0.3598,86765.0,86764.0,0.11636803]
[1763663975206,0.47653,86765.0,86764.0,0.00219803]
[1763663975709,0.3598,86765.0,86764.0,0.11636803]
[1763663975918,0.00017285,86769.0,86764.0,0.11636803]
[1763663975919,0.00017285,86769.0,86768.0,0.2401976]
[1763663976112,0.00017285,86769.0,86768.0,0.24239563]
[1763663976511,0.00017285,86769.0,86768.0,0.23085803]
[1763663976512,0.0002921,86769.0,86768.0,0.23085803]
[1763663976713,0.0002921,86769.0,86768.0,0.11636803]
[1763663977512,0.2346221,86769.0,86768.0,0.00219803]
[1763663978017,0.0002921,86769.0,86768.0,0.23085803]
[1763663978209,0.0002921,86769.0,86768.0,0.23285803]
[1763663978920,0.0002921,86769.0,86768.0,0.23485803]
[1763663979120,0.0006921,86769.0,86768.0,0.23445803]
[1763663979510,0.2350221,86769.0,86768.0,0.00579803]
[1763663980223,0.5958221,86769.0,86768.0,0.00539803]
[1763663980820,0.04374,86758.0,86732.0,0.3608]
[1763663981021,0.00219803,86733.0,86732.0,0.58946]
[1763663981223,0.3608,86748.0,86739.0,0.22866]
[1763663981522,0.011541,86743.0,86742.0,0.11417]
[1763663981814,0.0115419,86736.0,86735.0,0.22866]
[1763663982016,0.3608,86748.0,86739.0,0.2402015]
[1763663982017,0.0115413,86740.0,86739.0,0.2402015]
[1763663982219,0.0115411,86742.0,86740.0,0.00219803]
[1763663982414,0.00017285,86749.0,86748.0,0.22866]
[1763663982614,0.00017285,86749.0,86748.0,0.24239833]
[1763663982923,0.00017285,86749.0,86748.0,0.23085803]
[1763663983427,0.00017285,86749.0,86748.0,0.24239833]
[1763663983824,0.00017285,86749.0,86748.0,0.23385803]
[1763663984821,0.3608,86750.0,86749.0,0.11449]
[1763663985021,0.3608,86750.0,86749.0,0.23085803]
[1763663985323,0.3608,86757.0,86756.0,0.22866]
[1763663985525,0.3608,86757.0,86756.0,0.23085803]
[1763663986722,0.12827,86750.0,86749.0,0.003]
[1763663987030,0.12627,86750.0,86749.0,0.00519803]
[1763663987218,0.12427,86750.0,86749.0,0.11636803]
[1763663987527,0.00754,86750.0,86749.0,0.11636803]
[1763663988114,0.00754,86750.0,86749.0,0.23085803]
[1763663988316,0.36834,86750.0,86749.0,0.23085803]
[1763663988824,0.48507,86750.0,86749.0,0.11636803]
[1763663989025,0.48507,86750.0,86749.0,0.11836803]
[1763663989320,0.36834,86750.0,86749.0,0.23585803]
[1763663989521,0.3608,86757.0,86756.0,0.22866]
[1763663989728,0.3608,86757.0,86756.0,0.23085803]
[1763663990327,0.0115385,86762.0,86761.0,0.11417]
[1763663990522,0.01171085,86765.0,86764.0,0.22866]
[1763663990716,0.00017285,86765.0,86764.0,0.24239623]
[1763663991114,0.11690285,86765.0,86764.0,0.23085803]
[1763663991314,0.23450285,86765.0,86764.0,0.00219803]
[1763663992117,0.00017285,86765.0,86764.0,0.23085803]
[1763663993222,0.00017285,86765.0,86764.0,0.59365803]
[1763663994119,0.00017285,86765.0,86764.0,0.23245803]
[1763663994120,0.00057285,86765.0,86764.0,0.23245803]
[1763663994319,0.00057285,86765.0,86764.0,0.23445803]
[1763663994928,0.00057285,86765.0,86764.0,0.23405803]
[1763663995626,0.0115367,86775.0,86768.0,0.22866]
[1763663995924,0.0115371,86772.0,86768.0,0.2307907]
[1763663996121,0.00091925,86769.0,86768.0,0.2307907]
[1763663996324,0.00091925,86769.0,86768.0,0.5915907]
[1763663996916,0.00091925,86769.0,86768.0,0.2327907]
[1763663999025,0.00011925,86769.0,86768.0,0.2327907]
[1763663999524,0.00017285,86777.0,86776.0,0.22866]
[1763663999719,0.00017285,86777.0,86776.0,0.2307907]
[1763663999720,0.11770285,86777.0,86776.0,0.2307907]
[1763664000224,0.23530285,86777.0,86776.0,0.0021307]
[1763664000415,0.23538742,86777.0,86776.0,0.0021307]
[1763664000818,0.2458675,86769.0,86768.0,0.00117285]
[1763664001122,0.00090674,86769.0,86768.0,0.23196355]
[1763664001326,0.11763674,86769.0,86768.0,0.23196355]
[1763664001511,0.23523674,86769.0,86768.0,0.00017285]
[1763664001713,0.23523674,86769.0,86747.0,0.36093321]
[1763664001714,0.2458703,86748.0,86747.0,0.00013321]
[1763664002026,0.60758385,86748.0,86747.0,0.00013321]
[1763664002217,0.00899999,86740.0,86727.0,0.3608]
[1763664002423,0.04195181,86739.0,86732.0,0.222]
[1763664002724,0.04095181,86739.0,86738.0,0.2096107]
[1763664003027,0.06190056,86744.0,86743.0,0.2190209]
[1763664003234,0.00028053,86744.0,86743.0,0.22121893]
[1763664003417,0.00899999,86750.0,86749.0,0.0115401]
[1763664003613,0.44303241,86755.0,86754.0,0.2190195]
[1763664003916,0.3608,86755.0,86754.0,0.22121753]
[1763664004121,0.57642,86755.0,86754.0,0.00219803]
[1763664004318,0.21562,86747.0,86746.0,0.00017285]
[1763664004516,0.57642,86747.0,86746.0,0.00237088]
[1763664004721,0.0115397,86753.0,86752.0,0.09965]
[1763664004919,0.2271597,86753.0,86752.0,0.00219803]
[1763664005627,0.0095404,86747.0,86746.0,0.00017285]
[1763664005828,0.3703404,86747.0,86746.0,0.00237088]
[1763664006126,0.5839604,86747.0,86746.0,0.00017285]
[1763664006323,0.58205765,86747.0,86746.0,0.00017285]
[1763664006827,0.58205765,86747.0,86746.0,0.10202088]
[1763664006828,0.46942725,86747.0,86746.0,0.10202088]
[1763664007129,0.10862725,86747.0,86746.0,0.10602088]
[1763664007425,0.46942725,86747.0,86746.0,0.10602088]
[1763664007729,0.21571725,86747.0,86746.0,0.00637088]
[1763664007927,0.57651725,86747.0,86746.0,0.00637088]
[1763664008222,0.57651725,86747.0,86746.0,0.00417285]
[1763664008412,0.57651725,86747.0,86746.0,0.00637088]
[1763664009115,9.725e-05,86747.0,86746.0,0.21385088]
[1763664010322,0.36089725,86747.0,86746.0,0.21385088]
[1763664010525,0.57651725,86747.0,86746.0,0.00637088]
[1763664011122,0.57651725,86747.0,86746.0,0.00417285]
[1763664011526,0.36089725,86747.0,86746.0,0.21385088]
[1763664012028,9.725e-05,86747.0,86746.0,0.21385088]
[1763664012329,0.57651725,86747.0,86746.0,0.00637088]
[1763664013224,0.36089725,86747.0,86746.0,0.21385088]
[1763664013525,9.725e-05,86747.0,86746.0,0.22539138]
[1763664013916,9.725e-05,86747.0,86746.0,0.21385088]
[1763664014129,0.10862725,86747.0,86746.0,0.21385088]
[1763664014923,9.725e-05,86747.0,86746.0,0.21385088]
[1763664015523,0.01163765,86747.0,86746.0,0.21385088]
[1763664016026,9.725e-05,86747.0,86746.0,0.21385088]
[1763664016418,0.00017285,86763.0,86762.0,0.20748]
[1763664016732,0.21579285,86763.0,86762.0,0.00219803]
[1763664017425,0.21579285,86763.0,86758.0,0.0115389]
[1763664017426,0.0115388,86759.0,86758.0,0.0115389]
[1763664017626,0.0115388,86759.0,86758.0,0.22121693]
[1763664017832,0.0115388,86759.0,86758.0,0.20967803]
[1763664018232,0.2271588,86759.0,86758.0,0.00219803]
[1763664018533,0.3608,86760.0,86759.0,0.20748]
[1763664018732,0.46933,86760.0,86759.0,0.20967803]
[1763664018921,0.57642,86760.0,86759.0,0.00219803]
[1763664019122,0.2271601,86749.0,86746.0,0.00017285]
[1763664019332,0.21562,86747.0,86746.0,0.00017285]
[1763664019632,0.21362,86747.0,86746.0,0.10202088]
[1763664019834,0.01159283,86748.0,86747.0,0.20748]
[1763664020038,0.01159283,86748.0,86747.0,0.20967803]
[1763664020227,0.01159283,86748.0,86747.0,0.57047803]
[1763664020228,5.253e-05,86748.0,86747.0,0.57047803]
[1763664020427,0.01159283,86748.0,86747.0,0.57047803]
[1763664020938,5.253e-05,86748.0,86747.0,0.57047803]
[1763664021928,0.10853,86762.0,86761.0,0.20748]
[1763664022133,0.00899999,86770.0,86761.0,0.20967803]
[1763664022428,0.10870285,86763.0,86762.0,0.20748]
[1763664022635,0.00017285,86763.0,86762.0,0.20967803]
[1763664022827,0.3608,86778.0,86777.0,0.2190164]
[1763664023135,0.0115393,86755.0,86754.0,0.1111893]
[1763664023435,0.011539,86758.0,86757.0,0.20748]
[1763664023628,0.011538,86767.0,86766.0,0.20748]
[1763664023829,0.120068,86767.0,86766.0,0.20967803]
[1763664024027,0.226158,86767.0,86766.0,0.00219803]
[1763664024224,0.2271588,86759.0,86758.0,0.00017285]
[1763664024432,0.2271588,86759.0,86758.0,0.00237088]
[1763664024625,0.2271588,86759.0,86758.0,0.10202088]
[1763664024831,0.2271588,86759.0,86758.0,0.00237088]
[1763664025435,0.01154,86750.0,86749.0,0.09965]
[1763664025634,0.22716,86750.0,86749.0,0.10184803]
[1763664025836,0.01154,86750.0,86749.0,0.20967803]
[1763664026036,0.00899999,86760.0,86752.0,0.1111896]
[1763664026037,0.0115396,86753.0,86752.0,0.1111896]
[1763664026233,0.2271596,86753.0,86752.0,0.00219803]
[1763664026539,0.00017285,86761.0,86759.0,0.10783]
[1763664026840,0.22733135,86761.0,86760.0,0.00219803]
[1763664027540,0.01171135,86761.0,86760.0,0.20967803]
[1763664027736,0.00017285,86761.0,86760.0,0.20967803]
[1763664028144,0.10870285,86761.0,86760.0,0.20967803]
[1763664028449,0.21579285,86761.0,86760.0,0.00219803]
[1763664028647,0.57659285,86761.0,86760.0,0.00219803]
[1763664030040,0.0115407,86747.0,86746.0,0.09138]
[1763664030235,0.1061007,86747.0,86746.0,0.09357803]
[1763664030637,0.2020507,86747.0,86746.0,0.09357803]
[1763664030838,0.2020507,86747.0,86746.0,0.00219803]
[1763664031341,0.2020507,86747.0,86746.0,0.00202533]
[1763664031538,0.0115403,86748.0,86746.0,0.19252533]
[1763664031743,0.2020503,86748.0,86747.0,0.09138]
[1763664031934,0.2020503,86748.0,86747.0,0.19269803]
[1763664032633,0.2020503,86748.0,86747.0,0.00219803]
[1763664033033,0.2028107,86745.0,86744.0,0.00017285]
[1763664033242,0.5636107,86745.0,86744.0,0.00017285]
[1763664034040,0.19127,86734.0,86733.0,0.3608]
[1763664034247,0.00899999,86730.0,86721.0,0.18951]
[1763664034541,0.00899999,86730.0,86729.0,0.2010528]
[1763664034841,0.40195041,86745.0,86744.0,0.18951]
[1763664035041,0.5636108,86745.0,86744.0,0.19170803]
[1763664035745,0.59321809,86745.0,86744.0,0.19170803]
[1763664036042,0.55207,86745.0,86744.0,0.19170803]
[1763664036237,0.55207,86745.0,86744.0,0.00219803]
[1763664037445,0.55207,86745.0,86744.0,0.19170803]
[1763664037745,0.04114809,86750.0,86749.0,0.1082601]
[1763664038045,0.09452,86752.0,86749.0,0.1082601]
[1763664038046,0.09452,86752.0,86749.0,0.20324813]
[1763664038248,0.23259104,86753.0,86752.0,0.0115397]
[1763664038542,0.23259104,86753.0,86752.0,0.00219803]
[1763664038749,0.2325547,86753.0,86752.0,0.09891803]
[1763664039252,0.2325547,86753.0,86752.0,0.00219803]
[1763664039452,0.19144295,86753.0,86752.0,0.00219803]
[1763664039753,0.23254435,86753.0,86752.0,0.00219803]
[1763664039939,0.00899999,86750.0,86742.0,0.3608]
[1763664040242,0.2028109,86743.0,86742.0,0.36299803]
[1763664040446,0.2028109,86743.0,86742.0,0.00219803]
[1763664041248,0.19127,86743.0,86742.0,0.00219803]
[1763664043346,0.19127,86743.0,86742.0,0.19170803]
[1763664045444,0.19127,86743.0,86742.0,0.00219803]
[1763664046957,0.2028117,86737.0,86736.0,0.00017295]
[1763664047157,0.2028117,86737.0,86736.0,0.00237098]
[1763664047357,0.19127,86737.0,86736.0,0.00237098]
[1763664047559,0.2028117,86737.0,86736.0,0.00237098]
[1763664048261,0.2028117,86737.0,86736.0,0.00017295]
[1763664048462,0.2028117,86737.0,86736.0,0.19188098]
[1763664048650,0.19127,86745.0,86744.0,0.2010507]
[1763664048851,0.2028107,86745.0,86744.0,0.20324873]
[1763664049051,0.19127,86745.0,86744.0,0.20324873]
[1763664049261,0.13560033,86749.0,86744.0,0.20324873]
[1763664049262,0.09452,86749.0,86748.0,0.2010503]
[1763664049454,0.09452,86749.0,86748.0,0.20324833]
[1763664049653,0.00017295,86753.0,86752.0,0.2010497]
[1763664049964,0.09410295,86753.0,86752.0,0.19170803]
[1763664050255,0.19144295,86753.0,86752.0,0.00219803]
[1763664050461,0.19144295,86753.0,86752.0,0.19170803]
[1763664050757,0.00017295,86753.0,86752.0,0.19170803]
[1763664051055,0.09410295,86753.0,86752.0,0.19170803]
[1763664051261,0.00017295,86753.0,86752.0,0.19170803]
[1763664051654,0.00017295,86753.0,86752.0,0.55250803]
[1763664051955,0.19144295,86753.0,86752.0,0.55250803]
[1763664052155,0.36097295,86753.0,86752.0,0.19170803]
[1763664052352,0.09410295,86753.0,86752.0,0.19170803]
[1763664052656,0.00017295,86753.0,86752.0,0.19170803]
[1763664053056,0.3608,86763.0,86762.0,0.18951]
[1763664053359,0.3608,86763.0,86762.0,0.19170803]
[1763664053658,0.0115382,86764.0,86763.0,0.2010483]
[1763664053855,0.0115382,86764.0,86763.0,0.20324633]
[1763664054061,0.2028082,86764.0,86763.0,0.00219803]
[1763664054460,0.24388853,86764.0,86763.0,0.00219803]
[1763664054762,0.2028092,86756.0,86755.0,0.00017295]
[1763664054953,0.5636092,86756.0,86755.0,0.00237098]
[1763664055554,0.5636092,86756.0,86755.0,0.00017295]
[1763664058864,0.2028119,86736.0,86735.0,0.18951]
[1763664059163,0.2028109,86743.0,86742.0,0.09672]
[1763664059362,0.2028109,86743.0,86742.0,0.19170803]
[1763664059666,0.09393,86750.0,86749.0,0.09279]
[1763664059965,0.19127,86750.0,86749.0,0.00219803]
[1763664060364,0.2028111,86742.0,86741.0,0.00017295]
[1763664060557,0.19127,86724.0,86720.0,0.04138212]
[1763664060751,0.2028127,86730.0,86729.0,0.09672]
[1763664060951,0.02500484,86730.0,86729.0,0.00219803]
[1763664061260,0.02500484,86730.0,86729.0,0.19170803]
[1763664061853,0.0115427,86730.0,86729.0,0.01374073]
[1763664062164,0.2028127,86732.0,86731.0,0.1082625]
[1763664062367,0.182722,86735.0,86734.0,0.1954521]
[1763664062571,0.182722,86735.0,86734.0,0.19765013]
[1763664062758,0.08177295,86738.0,86737.0,0.1954517]
[1763664062954,0.17135295,86738.0,86737.0,0.19764973]
[1763664063159,0.00017295,86738.0,86737.0,0.19764973]
[1763664063967,0.1060596,86754.0,86750.0,0.19545]
[1763664064170,0.1060596,86754.0,86750.0,0.19764803]
[1763664064370,0.4539399,86751.0,86750.0,0.19764803]
[1763664064570,0.3608,86751.0,86750.0,0.19764803]
[1763664064774,0.4424,86751.0,86750.0,0.19764803]
[1763664064973,0.3608,86751.0,86750.0,0.19764803]
[1763664065273,0.4424,86751.0,86750.0,0.19764803]
[1763664065472,0.3608,86751.0,86750.0,0.19764803]
[1763664065769,0.09452,86754.0,86753.0,0.1954496]
[1763664065982,0.09452,86754.0,86753.0,0.19764763]
[1763664066169,0.00017295,86759.0,86758.0,0.195449]
[1763664066370,0.00017295,86759.0,86758.0,0.55844703]
[1763664066573,0.17135295,86759.0,86758.0,0.00219803]
[1763664067473,0.04102045,86768.0,86767.0,0.18391]
[1763664067772,0.04100449,86786.0,86781.0,0.18391]
[1763664067980,0.0816,86782.0,86781.0,0.1954459]
[1763664068160,0.02510611,86782.0,86781.0,0.18610803]
[1763664068473,0.10670611,86782.0,86781.0,0.18610803]
[1763664068667,0.10670611,86782.0,86781.0,0.00219803]
[1763664068668,0.19628611,86782.0,86781.0,0.00219803]
[1763664068868,0.17118,86782.0,86781.0,0.00219803]
[1763664069571,0.17118,86775.0,86774.0,0.0115367]
[1763664069772,0.17118,86775.0,86774.0,0.01373473]
[1763664070269,0.17118,86775.0,86774.0,0.00219803]
[1763664070477,0.1827168,86774.0,86773.0,0.00017284]
[1763664070678,0.1827168,86774.0,86773.0,2.84e-06]
[1763664071180,0.17118,86774.0,86773.0,2.84e-06]
[1763664071675,0.17118,86755.0,86754.0,0.0115395]
[1763664071865,0.17118,86755.0,86754.0,0.19764753]